fUSD/lending_fUSD_20250916
["ID","MTS","AMOUNT","RATE_DAILY","PERIOD"]
[385833915,1758058253305,-536.79,0.00031505,6]
[385833917,1758058253315,-400.0,0.00031505,6]
[385833918,1758058253324,-400.0,0.00031505,6]
[385833919,1758058253334,-400.0,0.00031505,6]
[385833920,1758058253343,-400.0,0.00031505,6]
[385833921,1758058253352,-400.0,0.00031505,6]
[385833922,1758058253361,-400.0,0.00031505,6]
[385833923,1758058253370,-412.0103895,0.00031505,6]
[385833924,1758058253379,-400.0,0.00031505,6]
[385833926,1758058253388,-400.0,0.00031505,6]
[385833928,1758058253398,-400.0,0.00031505,6]
[385833930,1758058253407,-403.25515672,0.00031505,6]
[385833932,1758058253416,-400.0,0.00031505,6]
[385833934,1758058253425,-400.0,0.00031505,6]
[385833936,1758058253435,-400.0,0.00031505,6]
[385833938,1758058253444,-532.18916103,0.00031505,6]
[385833940,1758058253454,-400.0,0.00031505,6]
[385833942,1758058253463,-400.0,0.00031505,6]
[385833944,1758058253473,-400.0,0.00031505,6]
[385833946,1758058253483,-400.0,0.00031505,6]
[385833948,1758058253492,-400.0,0.00031505,6]
[385833951,1758058253502,-400.0,0.00031505,6]
[385833953,1758058253511,-478.6,0.00031505,6]
[385833955,1758058253521,-400.0,0.00031505,6]
[385833957,1758058253530,-540.68,0.00031505,6]
[385833959,1758058253539,-404.69390959,0.00031505,6]
[385833961,1758058253548,-400.0,0.00031505,6]
[385833963,1758058253557,-400.0,0.00031505,6]
[385833965,1758058253567,-400.0,0.00031505,6]
[385833967,1758058253577,-400.0,0.00031505,6]
[385833969,1758058253586,-400.0,0.00031505,6]
[385833971,1758058253596,-478.29,0.00031505,6]
[385833973,1758058253605,-400.0,0.00031505,6]
[385833975,1758058253614,-433.9,0.00031505,6]
[385833977,1758058253623,-400.0,0.00031505,6]
[385833979,1758058253632,-400.0,0.00031505,6]
[385833981,1758058253642,-400.0,0.00031505,6]
[385833983,1758058253651,-400.0,0.00031505,6]
[385833985,1758058253661,-400.0,0.00031505,6]
[385833987,1758058253670,-400.0,0.00031505,6]
[385833989,1758058253679,-507.59,0.00031505,6]
[385833991,1758058253689,-465.31,0.00031505,6]
[385833993,1758058253699,-486.05,0.00031505,6]
[385833995,1758058253708,-403.1859913,0.00031505,6]
[385833997,1758058253718,-400.0,0.00031505,6]
[385833999,1758058253727,-400.0,0.00031505,6]
[385834001,1758058253736,-400.0,0.00031505,6]
[385834003,1758058253745,-153.57417815,0.00031505,6]
[385834005,1758058253754,-400.0,0.00031505,6]
[385834007,1758058253763,-400.0,0.00031505,6]
[385834009,1758058253773,-400.0,0.00031505,6]
[385834011,1758058253782,-400.0,0.00031505,6]
[385834013,1758058253792,-400.0,0.00031505,6]
[385834015,1758058253801,-400.0,0.00031505,6]
[385834017,1758058253810,-400.0,0.00031505,6]
[385834019,1758058253819,-400.0,0.00031505,6]
[385834021,1758058253828,-400.0,0.00031505,6]
[385834023,1758058253838,-400.0,0.00031505,6]
[385834025,1758058253847,-400.0,0.00031505,6]
[385834027,1758058253856,-400.0,0.00031505,6]
[385834029,1758058253865,-400.0,0.00031505,6]
[385834031,1758058253877,-400.0,0.00031505,6]
[385834033,1758058253886,-400.0,0.00031505,6]
[385834035,1758058253895,-423.01,0.00031505,6]
[385834037,1758058253904,-400.0,0.00031505,6]
[385834039,1758058253914,-500.0,0.00031505,6]
[385834041,1758058253923,-400.0,0.00031505,6]
[385834043,1758058253933,-400.0,0.00031505,6]
[385834045,1758058253943,-400.0,0.00031505,6]
[385834047,1758058253952,-400.0,0.00031505,6]
[385834049,1758058253962,-400.0,0.00031505,6]
[385834052,1758058253971,-400.0,0.00031505,6]
[385834053,1758058253980,-400.0,0.00031505,6]
[385834056,1758058253989,-459.41,0.00031505,6]
[385834057,1758058253998,-400.0,0.00031505,6]
[385834059,1758058254008,-399.99973152,0.00031505,6]
[385834061,1758058254017,-400.0,0.00031505,6]
[385834064,1758058254026,-400.0,0.00031505,6]
[385834066,1758058254035,-400.0,0.00031505,6]
[385834068,1758058254045,-400.0,0.00031505,6]
[385834070,1758058254054,-400.0,0.00031505,6]
[385834072,1758058254064,-400.0,0.00031505,6]
[385834074,1758058254074,-400.0,0.00031505,6]
[385834076,1758058254084,-400.0,0.00031505,6]
[385834078,1758058254093,-400.0,0.00031505,6]
[385834080,1758058254102,-400.0,0.00031505,6]
[385834082,1758058254112,-400.0,0.00031505,6]
[385834084,1758058254121,-400.0,0.00031505,6]
[385834086,1758058254130,-407.75629029,0.00031505,6]
[385834088,1758058254139,-318.92232399,0.00031505,6]
[385834090,1758058254148,-161.60845188,0.00031505,6]
[385834092,1758058254158,-406.51734935,0.00031505,6]
[385834094,1758058254167,-400.0,0.00031505,6]
[385834096,1758058254177,-400.0,0.00031505,6]
[385834098,1758058254187,-400.0,0.00031505,6]
[385834100,1758058254197,-400.0,0.00031505,6]
[385834102,1758058254206,-400.0,0.00031505,6]
[385834104,1758058254215,-404.32912427,0.00031505,6]
[385834106,1758058254225,-400.0,0.00031505,6]
[385834108,1758058254234,-400.0,0.00031505,6]
[385834110,1758058254243,-518.64446466,0.00031505,6]
[385834112,1758058254251,-400.0,0.00031505,6]
[385834114,1758058254261,-181.97808801,0.00031505,6]
[385834116,1758058254271,-400.0,0.00031505,6]
[385834118,1758058254281,-400.0,0.00031505,6]
[385834120,1758058254290,-400.0,0.00031505,6]
[385834122,1758058254300,-400.0,0.00031505,6]
[385834124,1758058254309,-400.0,0.00031505,6]
[385834126,1758058254319,-400.0,0.00031505,6]
[385834128,1758058254328,-400.0,0.00031505,6]
[385834130,1758058254337,-400.0,0.00031505,6]
[385834132,1758058254347,-400.0,0.00031505,6]
[385834134,1758058254356,-400.0,0.00031505,6]
[385834136,1758058254365,-400.0,0.00031505,6]
[385834138,1758058254375,-400.0,0.00031505,6]
[385834140,1758058254384,-400.0,0.00031505,6]
[385834142,1758058254394,-400.0,0.00031505,6]
[385834144,1758058254403,-400.0,0.00031505,6]
[385834146,1758058254412,-400.0,0.00031505,6]
[385834148,1758058254421,-500.0,0.00031505,6]
[385834150,1758058254430,-400.0,0.00031505,6]
[385834152,1758058254439,-400.0,0.00031505,6]
[385834154,1758058254448,-400.0,0.00031505,6]
[385834156,1758058254457,-400.0,0.00031505,6]
[385834158,1758058254467,-400.0,0.00031505,6]
[385834160,1758058254476,-406.47,0.00031505,6]
[385834162,1758058254485,-400.0,0.00031505,6]
[385834164,1758058254494,-400.0,0.00031505,6]
[385834166,1758058254504,-400.0,0.00031505,6]
[385834167,1758058254513,-402.90338256,0.00031505,6]
[385834168,1758058254523,-400.0,0.00031505,6]
[385834169,1758058254532,-400.0,0.00031505,6]
[385834170,1758058254542,-400.0,0.00031505,6]
[385834171,1758058254551,-400.0,0.00031505,6]
[385834172,1758058254560,-1030.84,0.00031505,6]
[385834173,1758058254569,-400.0,0.00031505,6]
[385834175,1758058254578,-400.0,0.00031505,6]
[385834177,1758058254587,-400.0,0.00031505,6]
[385834179,1758058254597,-893.45,0.00031505,6]
[385834181,1758058254606,-400.0,0.00031505,6]
[385834183,1758058254615,-400.0,0.00031505,6]
[385834185,1758058254624,-400.0,0.00031505,6]
[385834187,1758058254634,-400.0,0.00031505,6]
[385834189,1758058254643,-1390.25,0.00031505,6]
[385834191,1758058254653,-400.0,0.00031505,6]
[385834193,1758058254662,-441.85815534,0.00031505,6]
[385834195,1758058254671,-400.0,0.00031505,6]
[385834197,1758058254680,-400.0,0.00031505,6]
[385834199,1758058254690,-400.0,0.00031505,6]
[385834201,1758058254698,-846.78,0.00031505,6]
[385834203,1758058254708,-400.0,0.00031505,6]
[385834205,1758058254717,-400.0,0.00031505,6]
[385834207,1758058254726,-400.0,0.00031505,6]
[385834209,1758058254735,-400.0,0.00031505,6]
[385834211,1758058254744,-402.71461234,0.00031505,6]
[385834213,1758058254753,-400.0,0.00031505,6]
[385834215,1758058254762,-500.0,0.00031505,6]
[385834217,1758058254771,-400.0,0.00031505,6]
[385834219,1758058254781,-320.04946903,0.00031505,6]
[385834221,1758058254791,-400.0,0.00031505,6]
[385834223,1758058254801,-400.0,0.00031505,6]
[385834225,1758058254810,-400.0,0.00031505,6]
[385834227,1758058254819,-400.0,0.00031505,6]
[385834229,1758058254828,-400.0,0.00031505,6]
[385834231,1758058254837,-463.17,0.00031505,6]
[385834232,1758058254847,-500.99068592,0.00031505,6]
[385834234,1758058254857,-403.278153,0.00031505,6]
[385834236,1758058254867,-400.0,0.00031505,6]
[385834238,1758058254879,-400.0,0.00031505,6]
[385834240,1758058254888,-400.0,0.00031505,6]
[385834242,1758058254899,-400.0,0.00031505,6]
[385834244,1758058254908,-400.0,0.00031505,6]
[385834246,1758058254918,-400.0,0.00031505,6]
[385834248,1758058254927,-400.0,0.00031505,6]
[385834250,1758058254936,-400.0,0.00031505,6]
[385834252,1758058254946,-160.56441291,0.00031505,6]
[385834254,1758058254955,-400.0,0.00031505,6]
[385834256,1758058254964,-400.0,0.00031505,6]
[385834258,1758058254973,-400.0,0.00031505,6]
[385834260,1758058254982,-400.0,0.00031505,6]
[385834262,1758058254991,-400.0,0.00031505,6]
[385834264,1758058254999,-400.0,0.00031505,6]
[385834266,1758058255008,-400.0,0.00031505,6]
[385834268,1758058255018,-400.0,0.00031505,6]
[385834270,1758058255027,-400.0,0.00031505,6]
[385834272,1758058255036,-400.0,0.00031505,6]
[385834274,1758058255045,-400.0,0.00031505,6]
[385834276,1758058255054,-400.0,0.00031505,6]
[385834278,1758058255064,-400.0,0.00031505,6]
[385834280,1758058255073,-400.0,0.00031505,6]
[385834282,1758058255082,-400.0,0.00031505,6]
[385834289,1758058255139,-400.0,0.00031505,6]
[385834291,1758058255149,-400.0,0.00031505,6]
[385834293,1758058255158,-400.0,0.00031505,6]
[385834295,1758058255167,-400.0,0.00031505,6]
[385834297,1758058255176,-400.0,0.00031505,6]
[385834299,1758058255187,-400.0,0.00031505,6]
[385834301,1758058255196,-400.0,0.00031505,6]
[385834303,1758058255206,-245.25511958,0.00031505,6]
[385834305,1758058255215,-400.0,0.00031505,6]
[385834307,1758058255224,-400.0,0.00031505,6]
[385834309,1758058255233,-300.0,0.00031505,6]
[385834311,1758058255242,-544.6,0.00031505,6]
[385834313,1758058255252,-400.0,0.00031505,6]
[385834315,1758058255261,-405.49219527,0.00031505,6]
[385834317,1758058255270,-400.0,0.00031505,6]
[385834319,1758058255279,-400.0,0.00031505,6]
[385834321,1758058255288,-400.0,0.00031505,6]
[385834323,1758058255297,-400.0,0.00031505,6]
[385834325,1758058255306,-400.0,0.00031505,6]
[385834327,1758058255315,-400.0,0.00031505,6]
[385834329,1758058255324,-579.99,0.00031505,6]
[385834331,1758058255334,-400.0,0.00031505,6]
[385834333,1758058255343,-400.0,0.00031505,6]
[385834335,1758058255352,-403.28390016,0.00031505,6]
[385834337,1758058255361,-400.0,0.00031505,6]
[385834339,1758058255370,-400.0,0.00031505,6]
[385834341,1758058255379,-400.0,0.00031505,6]
[385834343,1758058255389,-400.0,0.00031505,6]
[385834345,1758058255398,-404.34256216,0.00031505,6]
[385834347,1758058255407,-404.23109887,0.00031505,6]
[385834349,1758058255416,-319.76300407,0.00031505,6]
[385834351,1758058255425,-400.0,0.00031505,6]
[385834353,1758058255434,-1324.78,0.00031505,6]
[385834355,1758058255443,-400.0,0.00031505,6]
[385834357,1758058255452,-400.0,0.00031505,6]
[385834359,1758058255461,-359.68456762,0.00031505,6]
[385834361,1758058255470,-413.49108568,0.00031505,6]
[385834363,1758058255479,-400.0,0.00031505,6]
[385834365,1758058255488,-400.0,0.00031505,6]
[385834367,1758058255497,-1741.21,0.00031505,6]
[385834369,1758058255506,-308.3245591,0.00031505,6]
[385834371,1758058255515,-500.0,0.00031505,6]
[385834373,1758058255524,-400.0,0.00031505,6]
[385834375,1758058255533,-400.0,0.00031505,6]
[385834377,1758058255542,-400.0,0.00031505,6]
[385834379,1758058255555,-400.0,0.00031505,6]
[385834381,1758058255564,-400.0,0.00031505,6]
[385834383,1758058255574,-400.0,0.00031505,6]
[385834385,1758058255583,-405.2102459,0.00031505,6]
[385834388,1758058255592,-400.0,0.00031505,6]
[385834390,1758058255602,-400.0,0.00031505,6]
[385834391,1758058255611,-400.0,0.00031505,6]
[385834394,1758058255620,-400.0,0.00031505,6]
[385834395,1758058255629,-400.0,0.00031505,6]
[385834396,1758058255638,-400.0,0.00031505,6]
[385834397,1758058255647,-400.0,0.00031505,6]
[385834398,1758058255656,-1543.15,0.00031505,6]
[385834399,1758058255665,-402.32264576,0.00031505,6]
[385834400,1758058255673,-400.0,0.00031505,6]
[385834401,1758058255682,-500.0,0.00031505,6]
[385834403,1758058255692,-400.0,0.00031505,6]
[385834405,1758058255701,-500.0,0.00031505,6]
[385834407,1758058255710,-559.75,0.00031505,6]
[385834409,1758058255719,-377.80550768,0.00031505,6]
[385834411,1758058255728,-400.0,0.00031505,6]
[385834413,1758058255737,-400.0,0.00031505,6]
[385834415,1758058255746,-400.0,0.00031505,6]
[385834417,1758058255755,-400.0,0.00031505,6]
[385834419,1758058255764,-400.0,0.00031505,6]
[385834421,1758058255774,-400.0,0.00031505,6]
[385834422,1758058255783,-2637.68,0.00031505,6]
[385834425,1758058255794,-472.62264848,0.00031505,6]
[385834427,1758058255803,-400.0,0.00031505,6]
[385834429,1758058255812,-400.0,0.00031505,6]
[385834430,1758058255821,-400.0,0.00031505,6]
[385834433,1758058255831,-400.0,0.00031505,6]
[385834434,1758058255840,-635.22,0.00031505,6]
[385834436,1758058255849,-2060.24,0.00031505,6]
[385834438,1758058255858,-400.0,0.00031505,6]
[385834440,1758058255867,-400.0,0.00031505,6]
[385834442,1758058255878,-440.36,0.00031505,6]
[385834444,1758058255887,-400.0,0.00031505,6]
[385834446,1758058255896,-400.0,0.00031505,6]
[385834448,1758058255906,-549.20882473,0.00031505,6]
[385834450,1758058255915,-400.0,0.00031505,6]
[385834452,1758058255924,-1367.84,0.00031505,6]
[385834454,1758058255933,-400.0,0.00031505,6]
[385834456,1758058255942,-400.0,0.00031505,6]
[385834458,1758058255952,-400.0,0.00031505,6]
[385834460,1758058255961,-400.0,0.00031505,6]
[385834462,1758058255971,-400.0,0.00031505,6]
[385834464,1758058255980,-400.0,0.00031505,6]
[385834466,1758058255990,-400.0,0.00031505,6]
[385834468,1758058255999,-400.0,0.00031505,6]
[385834470,1758058256008,-400.0,0.00031505,6]
[385834472,1758058256019,-400.0,0.00031505,6]
[385834475,1758058256029,-400.0,0.00031505,6]
[385834477,1758058256038,-1696.13,0.00031505,6]
[385834479,1758058256047,-537.85,0.00031505,6]
[385834481,1758058256056,-400.0,0.00031505,6]
[385834482,1758058256065,-400.0,0.00031505,6]
[385834484,1758058256073,-289.82093172,0.00031505,120]
[385834486,1758058256082,-160.01743868,0.00031505,6]
[385834488,1758058256091,-428.76,0.00031505,6]
[385834490,1758058256101,-806.85,0.00031505,6]
[385834492,1758058256110,-402.52160544,0.00031505,6]
[385834494,1758058256119,-400.0,0.00031505,6]
[385834496,1758058256128,-400.0,0.00031505,6]
[385834498,1758058256137,-400.0,0.00031505,6]
[385834500,1758058256147,-400.0,0.00031505,6]
[385834502,1758058256156,-400.0,0.00031505,6]
[385834504,1758058256165,-2321.08,0.00031505,6]
[385834506,1758058256175,-406.41659242,0.00031505,6]
[385834508,1758058256185,-400.0,0.00031505,6]
[385834509,1758058256194,-400.0,0.00031505,6]
[385834511,1758058256204,-400.0,0.00031505,6]
[385834512,1758058256213,-400.0,0.00031505,6]
[385834514,1758058256223,-400.0,0.00031505,6]
[385834515,1758058256232,-777.31,0.00031505,6]
[385834517,1758058256241,-306.51069211,0.00031505,6]
[385834518,1758058256250,-400.0,0.00031505,6]
[385834520,1758058256259,-614.12,0.00031505,6]
[385834521,1758058256269,-400.0,0.00031505,6]
[385834523,1758058256279,-400.0,0.00031505,6]
[385834525,1758058256288,-400.0,0.00031505,6]
[385834526,1758058256297,-400.0,0.00031505,6]
[385834528,1758058256306,-400.0,0.00031505,6]
[385834529,1758058256316,-400.0,0.00031505,6]
[385834531,1758058256325,-400.0,0.00031505,6]
[385834533,1758058256335,-400.0,0.00031505,6]
[385834534,1758058256345,-400.0,0.00031505,6]
[385834536,1758058256354,-400.0,0.00031505,6]
[385834537,1758058256364,-472.73,0.00031505,6]
[385834539,1758058256373,-400.0,0.00031505,6]
[385834540,1758058256383,-400.0,0.00031505,6]
[385834542,1758058256392,-400.0,0.00031505,6]
[385834543,1758058256402,-1041.29,0.00031505,6]
[385834545,1758058256412,-400.0,0.00031505,6]
[385834547,1758058256421,-400.0,0.00031505,6]
[385834548,1758058256430,-400.0,0.00031505,6]
[385834550,1758058256439,-400.0,0.00031505,6]
[385834552,1758058256448,-400.0,0.00031505,6]
[385834553,1758058256457,-400.0,0.00031505,6]
[385834555,1758058256466,-400.0,0.00031505,6]
[385834556,1758058256475,-2927.23,0.00031505,6]
[385834558,1758058256484,-400.0,0.00031505,6]
[385834560,1758058256493,-400.0,0.00031505,6]
[385834561,1758058256503,-643.91,0.00031505,6]
[385834563,1758058256512,-400.0,0.00031505,6]
[385834565,1758058256521,-400.0,0.00031505,6]
[385834566,1758058256530,-400.0,0.00031505,6]
[385834568,1758058256539,-400.0,0.00031506,6]
[385834570,1758058256548,-400.0,0.00031506,6]
[385834571,1758058256557,-461.14,0.00031506,6]
[385834573,1758058256566,-400.0,0.00031506,6]
[385834574,1758058256575,-400.0,0.00031506,6]
[385834576,1758058256584,-331.36945577,0.00031506,6]
[385834578,1758058256593,-400.0,0.00031506,6]
[385834579,1758058256602,-207.11,0.00031506,6]
[385834581,1758058256612,-370.9,0.00031506,6]
[385834583,1758058256621,-400.0,0.00031506,6]
[385834584,1758058256630,-400.0,0.00031506,6]
[385834586,1758058256639,-156.51,0.00031506,6]
[385834588,1758058256648,-400.0,0.00031506,6]
[385834589,1758058256657,-400.0,0.00031506,6]
[385834591,1758058256666,-400.0,0.00031506,6]
[385834593,1758058256675,-400.0,0.00031506,6]
[385834594,1758058256685,-530.21,0.00031506,6]
[385834596,1758058256694,-727.34,0.00031506,6]
[385834597,1758058256703,-531.6,0.00031506,6]
[385834598,1758058256712,-2312.57,0.00031506,6]
[385834599,1758058256721,-586.9,0.00031506,6]
[385834600,1758058256730,-400.0,0.00031506,6]
[385834601,1758058256739,-400.0,0.00031506,6]
[385834602,1758058256749,-627.93,0.00031506,6]
[385834603,1758058256758,-753.33,0.00031506,6]
[385834604,1758058256767,-400.0,0.00031506,6]
[385834605,1758058256777,-400.0,0.00031506,6]
[385834606,1758058256786,-400.0,0.00031506,6]
[385834607,1758058256795,-589.16,0.00031506,6]
[385834608,1758058256804,-609.41,0.00031506,6]
[385834609,1758058256813,-510.36,0.00031506,6]
[385834610,1758058256822,-400.0,0.00031506,6]
[385834611,1758058256831,-684.2,0.00031506,6]
[385834612,1758058256840,-511.86,0.00031506,6]
[385834613,1758058256849,-2593.28,0.00031506,6]
[385834614,1758058256858,-764.41,0.00031506,6]
[385834615,1758058256867,-409.5,0.00031506,6]
[385834616,1758058256880,-594.69,0.00031506,6]
[385834617,1758058256889,-400.0,0.00031506,6]
[385834618,1758058256898,-400.0,0.00031506,6]
[385834619,1758058256907,-918.03,0.00031506,6]
[385834620,1758058256916,-563.64,0.00031506,6]
[385834621,1758058256925,-955.33,0.00031506,6]
[385834622,1758058256934,-3040.54,0.00031506,6]
[385834623,1758058256943,-400.0,0.00031506,6]
[385834624,1758058256952,-594.06,0.00031506,6]
[385834625,1758058256962,-659.68,0.00031506,6]
[385834626,1758058256971,-410.08934356,0.00031506,6]
[385834627,1758058256980,-483.06,0.00031506,6]
[385834628,1758058256989,-400.0,0.00031506,6]
[385834629,1758058256998,-585.22,0.00031506,6]
[385834630,1758058257007,-415.03462179,0.00031506,6]
[385834631,1758058257016,-431.69,0.00031506,6]
[385834632,1758058257025,-400.0,0.00031506,6]
[385834634,1758058257034,-400.0,0.00031506,6]
[385834636,1758058257044,-400.0,0.00031506,6]
[385834638,1758058257054,-400.0,0.00031506,6]
[385834640,1758058257064,-150.0,0.00031537,7]
[385834641,1758058257073,-150.0,0.00031537,7]
[385834642,1758058257082,-150.0,0.00031537,7]
[385834643,1758058257092,-150.0,0.00031537,7]
[385834644,1758058257101,-150.0,0.00031537,7]
[385834645,1758058257110,-150.0,0.00031537,7]
[385834646,1758058257120,-600.0,0.00031558,7]
[385834647,1758058257129,-400.0,0.00031568,6]
[385834648,1758058257138,-400.0,0.00031568,6]
[385834649,1758058257147,-400.0,0.00031568,6]
[385834650,1758058257157,-400.0,0.00031568,6]
[385834651,1758058257166,-400.0,0.00031568,6]
[385834652,1758058257175,-400.0,0.00031568,6]
[385834653,1758058257185,-439.88,0.00031568,6]
[385834654,1758058257194,-400.0,0.00031568,6]
[385834655,1758058257204,-437.77544411,0.00031568,6]
[385834656,1758058257213,-400.0,0.00031568,6]
[385834657,1758058257222,-400.0,0.00031568,6]
[385834658,1758058257232,-400.0,0.00031568,6]
[385834659,1758058257242,-400.0,0.00031568,6]
[385834660,1758058257251,-400.0,0.00031568,6]
[385834661,1758058257260,-400.0,0.00031568,6]
[385834662,1758058257270,-595.63,0.00031568,6]
[385834663,1758058257279,-400.0,0.00031568,6]
[385834664,1758058257288,-400.0,0.00031568,6]
[385834666,1758058257297,-461.84,0.00031568,6]
[385834668,1758058257307,-400.0,0.00031568,6]
[385834670,1758058257316,-924.18,0.00031568,6]
[385834671,1758058257325,-400.0,0.00031568,6]
[385834672,1758058257335,-400.0,0.00031568,6]
[385834673,1758058257344,-400.0,0.00031568,6]
[385834674,1758058257353,-400.0,0.00031568,6]
[385834675,1758058257363,-400.0,0.00031568,6]
[385834676,1758058257373,-779.04,0.00031568,6]
[385834678,1758058257382,-11748.77,0.00031568,6]
[385834679,1758058257390,-400.0,0.00031568,6]
[385834680,1758058257400,-846.77,0.00031568,6]
[385834682,1758058257410,-816.88,0.00031568,6]
[385834683,1758058257419,-417.79,0.00031568,6]
[385834684,1758058257428,-617.06,0.00031568,6]
[385834686,1758058257438,-956.08,0.00031568,6]
[385834687,1758058257447,-1000.0,0.00031575,7]
[385834688,1758058257456,-1000.0,0.00031642,7]
[385834689,1758058257465,-500.0,0.00031661,7]
[385834690,1758058257475,-500.0,0.00031664,120]
[385834691,1758058257484,-1000.0,0.00031688,7]
[385834692,1758058257494,-700.0,0.00031735,7]
[385834693,1758058257503,-500.0,0.0003174,7]
[385834694,1758058257513,-400.0,0.00031741,6]
[385834695,1758058257522,-400.0,0.00031741,6]
[385834696,1758058257531,-400.0,0.00031741,6]
[385834698,1758058257540,-400.0,0.00031741,6]
[385834699,1758058257549,-227.89241992,0.00031741,6]
[385834701,1758058257559,-364.02670523,0.00031741,6]
[385834704,1758058257569,-400.0,0.00031741,6]
[385834706,1758058257578,-400.0,0.00031741,6]
[385834707,1758058257587,-400.0,0.00031741,6]
[385834709,1758058257596,-400.0,0.00031741,6]
[385834711,1758058257606,-400.0,0.00031741,6]
[385834712,1758058257616,-1275.83,0.00031741,6]
[385834714,1758058257626,-408.95,0.00031741,6]
[385834715,1758058257636,-400.0,0.00031741,6]
[385834716,1758058257646,-400.0,0.00031741,6]
[385834717,1758058257655,-400.0,0.00031741,6]
[385834718,1758058257664,-400.0,0.00031741,6]
[385834719,1758058257674,-467.76,0.00031741,6]
[385834720,1758058257683,-400.0,0.00031741,6]
[385834721,1758058257692,-833.72,0.00031741,6]
[385834722,1758058257701,-400.0,0.00031741,6]
[385834723,1758058257710,-400.0,0.00031741,6]
[385834724,1758058257720,-400.0,0.00031741,6]
[385834725,1758058257729,-529.33,0.00031741,6]
[385834726,1758058257739,-935.51,0.00031741,6]
[385834727,1758058257748,-539.44,0.00031741,6]
[385834728,1758058257758,-885.22,0.00031778,6]
[385834729,1758058257768,-882.33,0.00031778,6]
[385834730,1758058257777,-400.0,0.00031778,6]
[385834731,1758058257786,-583.88,0.00031778,6]
[385834732,1758058257796,-400.0,0.00031779,6]
[385834733,1758058257805,-396.43691739,0.00031779,6]
[385834734,1758058257815,-177.38472596,0.00031779,6]
[385834735,1758058257824,-400.0,0.00031779,6]
[385834736,1758058257834,-412.7249293,0.00031779,6]
[385834737,1758058257843,-400.0,0.00031779,6]
[385834738,1758058257852,-400.0,0.00031779,6]
[385834739,1758058257862,-400.0,0.00031779,6]
[385834740,1758058257875,-400.0,0.00031779,6]
[385834741,1758058257884,-400.0,0.00031779,6]
[385834742,1758058257893,-400.0,0.00031779,6]
[385834743,1758058257902,-400.0,0.00031779,6]
[385834744,1758058257911,-400.0,0.00031779,6]
[385834745,1758058257921,-497.10595788,0.00031779,6]
[385834746,1758058257931,-400.0,0.00031779,6]
[385834747,1758058257940,-400.0,0.00031779,6]
[385834748,1758058257949,-400.0,0.00031779,6]
[385834749,1758058257958,-400.0,0.00031779,6]
[385834750,1758058257967,-176.0,0.00031779,6]
[385834751,1758058257977,-400.0,0.00031779,6]
[385834752,1758058257986,-400.0,0.00031779,6]
[385834753,1758058257995,-400.0,0.00031779,6]
[385834754,1758058258005,-400.0,0.00031779,6]